{"text_format":"1","workbook":"xlsx","n_sheets":3,"sheets":["ATLETAS","PONTUAÇÃO","Classificação"],"not_rendered":{"charts":0,"images":0,"macros":1,"external_links":0,"defined_names":1,"comments":0,"pivot_tables":1},"unopened":[],"bounds":{"document_bytes":16777216,"sheet_cells":100000,"rows_first":2000,"rows_last":500,"rows_between":2000,"halvings":0,"cell_chars":16384,"cell_head_chars":4096},"cells_cut":0,"cells_raw":0,"read":"whole","date_system":"1900"}

{"sheet":"ATLETAS","index":0,"n_rows":104,"n_cols":12,"rows_kept":104,"cut":false,"hidden":false,"merged":[[0,0,0,2],[0,3,0,5],[0,6,0,8],[0,9,0,11]]}
["ETAPA ADPM",null,null,"ETAPA CASTELO",null,null,"ETAPA PEDERNEIRAS",null,null,"ETAPA ARENA"]
["PRÉ-MIRIM FEMININO ","Pts","Local ","Pré-Mirim Feminino","Pts","Local ","Pré-Mirim Feminino","Pts","Local ","Pré-Mirim Feminino","Pts","Local "]
["1-Lara Dantas",20,"Castelo ","1 -Elisa Paccola ",19,"Castelo","1-Elisa Paccola",20,"Castelo"]
["2-Alice Ferreira ",18,"Adpm","2 - Alice Ferreira",18,"Adpm","2 -Lara Dantas",18,"Castelo"]
["3-Elisa Zuicker ",16,"Castelo ","3- Lara Baccoli",17,"Castelo","3 – Alice Ferreira",15,"ADPM"]
["4-Isabela Gonçalves ",14,"Castelo ","4- Larissa Garcia",14,"Castelo","4- Sophia Barsoti",12,"Castelo"]
["5-Giovana Mastelari ",10,"Adpm","5- Giovana Castro",12,"Adpm","5 – Hadassa Graciane",11,"ADPM"]
["5-Helena Alves",10,"Castelo ","6- Cecilia Parejo",7,"Castelo","5 – Luiz Juliete",11,"ADPM"]
["7-Sophia Barsoti",5,"Castelo ","7- Alice Coelho",5,"Castelo","6 – Cecília Parejo",9,"Castelo"]
["7-Cecilia Parejo",5,"Castelo ","7- Manuela Garcia",5,"Adpm","7 – Isabeli Gonçalves",5,"Castelo"]
["9-Aline Coelho",4,"Castelo ","8- Luiza Juliete",4,"Adpm","7 – Larissa Garcia",5,"Castelo"]
["10-Livia De Melo",1,"Adpm","8- Helena Luiz ",4,"Castelo","8 – Alice Coelho",3,"Castelo"]
["10-Nicole Maciel ",1,"Adpm","9- Sophia Barsoti",3,"Castelo","9 – Helena Luiz",1,"Castelo"]
[null,null,null,"10- Melissa Silverio",2,"Adpm"]
[]
["Pré Mirim Masculino ","Pts","Local","Pré-Mirim Masculino ","Pts","Local","Pré- Mirim Masculino ","Pts","Local","Pré-Mirim Masculino ","Pts","Local"]
["1-Heitor Luiz",19,"Castelo ","1- Heitor Gabriel",20,"Castelo","1 – Vicente Serrano",18,"ADPM"]
["1-Heitor Gabriel",19,"Castelo ","2- Heitor Luiz",14,"Castelo","1 – Heitor Gabriel",18,"Castelo"]
["3-Gabriel Matheus ",13,"Adpm","3- Miguel Inácio",13,"Adpm","2 – Matheus Pires",16,"ADPM"]
["4-Benjamim Custódia ",10,"Pederneiras ","4- Vicente Serrano",9,"Adpm","3 – Gabriel Matheus",15,"ADPM"]
["5-Wallace Miguel",9,"Adpm","4- Noah Marrega",9,"Pederneiras","4 – Wallace Miguel",12,"ADPM"]
["5-Matheus Pires",9,"Adpm","4- Valentim Cotrin",9,"Castelo","5 – Murilo Thiago",9,"ADPM"]
["7-Gabriel Iacovone",7,"Castelo ","5- Gabriel Matheus",8,"Adpm","6 – Heitor Luiz",8,"Castelo"]
["8-Henry Nicoleto",6,"Adpm","6- Walace Miguel ",7,"Adpm","7 – Enzo gabriel de Sá",6,"Castelo"]
["8-Felipe Alves",6,"Castelo ","6- Gabriel Iacovone",7,"Castelo","8 – Bernardo Gusson",3,"Castelo"]
["10-Davi Almeida ",4,"Pederneiras ","7- Murilo Thiago",5,"Adpm","9 -Daniel Gimenes",2,"Castelo"]
["11-Noah Marrega",3,"Pederneiras ","8- Matheus Pires",4,"Adpm","10- Henry Nicoleto",1,"ADPM"]
["12- Arthur Padiar ",1,"Adpm","9- Heitor Fogaça",3,"Castelo","10- Gael Cavaliere",1,"Castelo"]
[null,null,null,"10- Davi Almeida",1,"Pederneiras"]
[]
["Mirim1 Feminino ","Pts","Local","Mirim1 Feminino ","Pts","Local","Mirim1 Feminino ","Pts","Local","Mirim1 Feminino ","Pts","Local"]
["1-Manuela Utiyama",20," Castelo ","1- Manuela Utyama",19,"Castelo","1- Maria Eduarda Barbosa",18,"Castelo"]
["2-Fernanda Forti",17,"Adpm","2- Maria Luiza",15,"Adpm","2- Manuela Utiyama",16,"Castelo"]
["3-Maria Eduarda Barboza",16,"Castelo ","2- Fernanda Forti",15,"Adpm","2 – Lara Fernanda",16,"Castelo"]
["4-Mariana Barbosa ",14,"Pederneiras ","3- Maria eduarda Babosa",14,"Castelo","3 – Fernanda Forti",15,"ADPM"]
["5-Lara Fernanda ",13,"Castelo ","4- Lara Fernanda",12,"CAstelo","4 – Fernanda Barbui",14,"Castelo"]
["6-Nicoly Gabriele",8,"Adpm","5- Fernanda Barbuio",9,"Castelo","5 – Beatriz Saiury",10,"Castelo"]
["7-Maria Luiza Macedo ",6,"Adpm","5- Mariana Frascarelli",9,"Pederneiras","6 – Maria Luiza Macedo",9,"ADPM"]
["8-Fernanda Barbuio ",5,"Castelo ","6- Nicole Gabriele ",7,"Adpm","7- Nicoly Gabriele",3,"ADPM"]
["8-Beatriz Saury",5,"Castelo ","7- Livia Kuchauski",4,"Adpm","7 – Natasha Rubin",3,"ADPM"]
["10-Angel Vitória ",3,"Castelo","7- Angel Vitória",4,"Castelo","7 – Lara Marques",3,"Castelo"]
["11-Lara Murai ",2,"Pederneiras ","8- Beatriz Sayuri",2,"Castelo","8 – Lorrayne Melo",2,"ADPM"]
["12-Larrisa Garcia",1,"Castelo ",null,null,null,"9 – Debora Cassiano",1,"ADPM"]
[]
["Mirim1 Masculino ","Pts","Local ","Mirim1 Masculino ","Pts","Local ","Mirim1 Masculino ","Pts","Local ","Mirim1 Masculino ","Pts","Local "]
["1-Theo Miranda ",20,"Adpm","1- Théo Miranda",19,"Adpm","1 – Leonardo Marcharet",19,"Castelo"]
["2-Leonardo Machareti",17,"Castelo","1- Pedro Lucca ",19,"Castelo","2 – Theo Miranda",17,"ADPM"]
["3-Pedro Lucca",16,"Castelo","2- Leonardo Marchareth",13,"Castelo","3 – Lorenzo Camargo",15,"ADPM"]
["4-Gabriel Veline",15,"Castelo ","3- Luiz Guilherme ",11,"Adpm","4 – Pedro Lucca Figueiredo",13,"Castelo"]
["5-Luis Guilherme Biteli",9,"Adpm","4- Bernardo Prado",9,"Adpm","5 – Luiz Guilherme Gouveia",11,"ADPM"]
["5-Bernardo Atuy",9,"Adpm","4- Artur Vieira",9,"Castelo","6 – Davi Felipe Arruda",11,"ADPM"]
["5-Raul de Jesus ",9,"Adpm","5- Lorenzo Henrique ",8,"Adpm","7 – Gabriel Veline ",10,"Castelo"]
["8-Lucas Cândido ",7,"Castelo ","6- Lorenzo Vasconcelos",7,"Adpm","8 – Arthur Vieira",4,"Castelo"]
["9-Lorenzo Henrique Camargo ",5,"Adpm","7- Bernardo Atuy",5,"Adpm","9 – Bernardo Atuy",3,"ADPM"]
["10-Bernardo Ferreira ",3,"Adpm","7- Raul de Jesus",5,"Adpm","9 – Miguel Maio",3,"ADPM"]
["11-Miguel Batista ",1,"Castelo ","8- Gabriel Addad",3,"Castelo","10- Victor Rocha",2,"Castelo"]
[null,null,null,"9- João Vitor Santana",2,"Adpm","11 – Gabriel Addad ",1,"Castelo"]
[null,null,null,null,null,null,"11 – Bernado Alves",1,"Castelo"]
[]
[]
["MIRIM 2 FEMININO ","Pts","Local","MIRIM 2 FEMININO ","Pts","Local","MIRIM 2 FEMININO ","Pts","Local","MIRIM 2 FEMININO ","Pts","Local"]
["1-Malu Mendes",18,"Arena","1- Malu Mendes",20,"Arena","1- Laura Vieira Grilo",27,"Arena"]
["2-Laura Gabriele",17,"Arena","2- Carol Carneiro",17,"Arena","2 – Malu Medes",24,"Arena"]
["3-Catarina Bonini",15,"Arena","3- Heloisa Laurindo",15,"Arena","3- Carol Carneiro",20,"Arena"]
["3-Carol Carneiro ",15,"Arena","4- Isadora Rosa",11,"Arena","3 – Laura Gabriele",20,"Arena"]
["5-Sophia Domingues ",14,"Arena","5- Laura Vieira",9,"Arena","4- Julia Pastori",16,"Arena"]
["6-Laura Vieira ",9,"Arena","5- Catarina Bonini ",9,"Arena","5 – Catarina Bonini",15,"Arena"]
["7-Heloisa Laurindo",8,"Arena","6-  Ana Baetriz de Lima",7,"Arena","6- Isadora Rosa",9,"Arena"]
["8-Ana Beatriz  Campos",4,"Arena","7- Ana Laura Faria ",5,"Arena","7 – Rafaela Melgar",7,"Arena"]
["8-Ana Laura Faria",4,"Arena","7- Julia Pastore",5,"Arena","8 – Larissa Campanhã",6,"Pederneiras"]
["10-Julia Pastori",3,"Arena","8- Manuela Sigolo",4,"Arena","9 -Heloísa Laurindo",5,"Arena"]
["11- Isadora Rosa",2,"Arena","8- Antonella Menezes",4,"Arena","10- Sophia Domingos",4,"Arena"]
["12-Larrissa Campanhã",1,"Arena","9- Alicia Serrano ",3,"Arena","11 – Hadassa Vitória",3,"Arena"]
[null,null,null,"10- Helena Souto",1,"Arena","12 – Ana Beatriz Lima",2,"Arena"]
[null,null,null,null,null,null,"13- Nicole Costa",1,"Arena"]
[null,null,null,null,null,null,"13- Helena Souto",1,"Arena"]
[]
[]
["MIRIM 2 MASCULINO ","Pts","Local","MIRIM 2 MASCULINO ","Pts","Local","MIRIM 2 MASCULINO ","Pts","Local","MIRIM 2 MASCULINO ","Pts","Local"]
["1- Davi Souza do Vale",20,"Arena","1- Davi Souza",18,"Arena","1 -Davi Souza",29,"Arena"]
["2-Vitor Guilhermino ",17,"Arena","4- Vitor Guilhermino",13,"Arena","2 – Vitor Guilhermino",28,"Arena"]
["2-Bento Vitica",17,"Arena","6- Bento Viticas",8,"Arena"]
["4-Luis Guilherme Sanfelice",11,"Arena","7- Luiz Gustavo Sanfelice",7,"Arena"]
["5-Matheus Morais ",8,"Arena","2- Mateus Moraes",16,"Arena","4 – Matheus Moraes",16,"Arena"]
["6-Carlos Eduardo Pondé",7,"Arena","9- Carlos eduardo Pondé ",4,"Arena","7 – Carlos Eduardo Pondé",7,"Arena"]
["7-Davi Lucca De Freitas",6,"Arena",null,null,null,"4 – Davi lucca freitas",16,"Arena"]
["7-Ryan de Lima",6,"Arena","10- Ryan de Lima Pedroso",2,"Arena"]
["7-Daniel Molaia",6,"Arena",null,null,null,"5 – Daniel Molaia",9,"Arena"]
["10-Samuel Iacovone",4,"Arena","3- Samuel Iacovone",15,"Arena"]
["11-Henry Luis",3,"Arena","9- Henry Luiz",4,"Arena"]
["11-Andre Philipi",3,"Arena"]
["13-Pedro José Iziderio ",2,"Arena",null,null,null,"10 -Pedro Ezidério",1,"Arena"]
[null,null,null,"10- Artur Pini",2,"Arena","3 – Arthur Pini",19,"Arena"]
[null,null,null,"5- Gustavo Henrique",11,"Arena"]
[null,null,null,"8- Heitor Lisboa",5,"Arena"]
[null,null,null,"9- Joaquim Leite",4,"Arena"]
[null,null,null,"10 - Davi Lucca Pires",2,"Arena"]
[null,null,null,null,null,null,"5 – Ryan Vera Cruz",9,"Arena"]
[null,null,null,null,null,null,"6 – Felipe Gabriel",8,"Arena"]
[null,null,null,null,null,null,"6 – Luiz Miguel Laureano",8,"Arena"]
[null,null,null,null,null,null,"7 – Lorenzo Carvalho",7,"Arena"]
[null,null,null,null,null,null,"8 – Lucas Henrique",3,"Arena"]
[null,null,null,null,null,null,"8 – Miguel Cordeiro",3,"Arena"]
[null,null,null,null,null,null,"9 – Cauã Malmonge",2,"Arena"]

{"sheet":"PONTUAÇÃO","index":1,"n_rows":155,"n_cols":10,"rows_kept":155,"cut":false,"hidden":false,"merged":[[0,0,0,7]]}
["PONTUAÇÃO DE PRÉ-MIRIM A MIRIM "]
["Indice","Nome do Atleta","Categoria","Pont. 1 etapa","Pont. 2 etapa","Pont. 3 etapa","Pont. 4 etapa","Pont. Final"]
[1,"Alice Coelho","Pré-Mirim Feminino",4,5,3,4,{"$f":"SUM(D3,E3,F3,G3)","v":16}]
[2,"Alice Ferreira","Pré-Mirim Feminino",18,18,15,10,61]
[3,"Cecilia Parejo","Pré-Mirim Feminino",5,7,9,1,22]
[4,"Elisa Paccola ","Pré-Mirim Feminino",16,19,20,9,64]
[6,"Giovana Mastelari ","Pré-Mirim Feminino",10,12,0,null,22]
[7,"Hadassa Graciane","Pré-Mirim Feminino",0,0,11,6,17]
[8,"Helena Alves","Pré-Mirim Feminino",10,4,1,3,18]
[10,"Isabeli Gonçalves","Pré-Mirim Feminino",14,0,5,7,26]
[12,"Lara Dantas","Pré-Mirim Feminino",20,17,18,8,63]
[13,"Larissa Garcia","Pré-Mirim Feminino",0,14,5,5,24]
[14,"Livia De Melo","Pré-Mirim Feminino",1,0,0,null,1]
[15,"Luiza Juliete","Pré-Mirim Feminino",0,4,11,2,17]
[16,"Manuela Garcia","Pré-Mirim Feminino",0,5,0,null,5]
[17,"Melissa Silverio","Pré-Mirim Feminino",0,2,0,null,2]
[18,"Nicole Maciel ","Pré-Mirim Feminino",1,0,0,null,1]
[19,"Sophia Barsoti","Pré-Mirim Feminino",5,3,12,null,20]
[20,"Arthur Padiar","Pré-Mirim Masculino",1,null,null,5,6]
[21,"Benjamim Custódia ","Pré-Mirim Masculino",10,null,null,null,10]
[22,"Bernardo Gusson","Pré-Mirim Masculino",null,null,3,3,6]
[23,"Daniel Gimenes","Pré-Mirim Masculino",null,null,2,1,3]
[24,"Davi Almeida","Pré-Mirim Masculino",4,1,2,null,7]
[25,"Enzo Gabriel de Sá","Pré-Mirim Masculino",null,null,6,null,6]
[26,"Felipe Alves","Pré-Mirim Masculino",6,null,null,null,6]
[27,"Gabriel Iacovone","Pré-Mirim Masculino",7,7,null,null,14]
[28,"Gabriel Matheus ","Pré-Mirim Masculino",13,8,15,8,44]
[29,"Gael Cavaliere","Pré-Mirim Masculino",null,null,1,null,1]
[30,"Heitor Fogaça","Pré-Mirim Masculino",null,3,null,null,3]
[31,"Heitor Gabriel","Pré-Mirim Masculino",19,20,18,7,64]
[32,"Heitor Luiz","Pré-Mirim Masculino",19,14,8,10,51]
[33,"Henry Nicoleto","Pré-Mirim Masculino",6,0,1,null,7]
[34,"Matheus Pires","Pré-Mirim Masculino",9,4,16,9,38]
[35,"Miguel Inácio","Pré-Mirim Masculino",null,13,null,null,13]
[36,"Murilo Thiago","Pré-Mirim Masculino",null,5,9,null,{"$f":"SUM(D35,E35,F35,G35)","v":14}]
[37,"Noah Marrega","Pré-Mirim Masculino",3,9,null,null,12]
[38,"Valentim Cotrin","Pré-Mirim Masculino",null,9,null,6,15]
[39,"Vicente Serrano","Pré-Mirim Masculino",null,9,18,4,31]
[40,"VITOR HUGO RASCASCHI BERBEL","Pré-Mirim Masculino",null,null,null,2,2]
[41,"Wallace Miguel","Pré-Mirim Masculino",9,7,12,null,28]
[42,"Angel Vitória","Mirim 1 Feminino",3,4,null,1,8]
[43,"Beatriz Saury","Mirim 1 Feminino",5,2,10,4,21]
[44,"Debora Cassiano","Mirim 1 Feminino",null,null,1,null,1]
[45,"Fernanda Barbuio ","Mirim 1 Feminino",null,9,14,7,30]
[46,"Fernanda Forti","Mirim 1 Feminino",17,15,15,9,56]
[47,"Lara Fernanda ","Mirim 1 Feminino",13,12,16,3,44]
[48,"Lara Marques","Mirim 1 Feminino",null,null,3,null,3]
[49,"Lara Murai ","Mirim 1 Feminino",2,null,null,null,2]
[50,"Larrisa Garcia","Mirim 1 Feminino",1,null,null,null,1]
[51,"Livia Kuchauski","Mirim 1 Feminino",null,4,null,null,4]
[52,"Lorrayne Melo","Mirim 1 Feminino",null,null,2,null,2]
[53,"Manuela Utiyama","Mirim 1 Feminino",20,19,16,8,63]
[54,"Maria Eduarda Barbosa","Mirim 1 Feminino",16,14,18,10,58]
[55,"Maria Luiza","Mirim 1 Feminino",null,15,null,null,15]
[56,"Maria Luiza Macedo","Mirim 1 Feminino",6,null,9,6,21]
[57,"Mariana Barbosa ","Mirim 1 Feminino",14,null,null,null,14]
[58,"Mariana Frascarelli","Mirim 1 Feminino",null,9,null,null,9]
[59,"Natasha Rubin","Mirim 1 Feminino",null,null,3,null,3]
[60,"Nicoly Gabriele","Mirim 1 Feminino",8,7,3,null,18]
[61,"Louise de Carvalho Lopes","Mirim 1 Feminino",null,null,null,5,5]
[62,"Marina Correia","Mirim 1 Feminino",null,null,null,2,2]
[63,"Arthur Vieira","Mirim 1 Masculino",null,9,4,6,19]
[64,"Bernado Alves","Mirim 1 Masculino",null,null,1,null,1]
[65,"Bernardo Atuy","Mirim 1 Masculino",9,5,3,4,21]
[66,"Bernardo Ferreira ","Mirim 1 Masculino",3,null,null,null,3]
[67,"Bernardo Prado","Mirim 1 Masculino",null,9,null,10,19]
[68,"Davi Felipe Arruda","Mirim 1 Masculino",null,null,11,null,{"$f":"SUM(D67,E67,F67,G67)","v":11}]
[69,"Gabriel Addad","Mirim 1 Masculino",null,3,null,null,3]
[70,"Gabriel Veline ","Mirim 1 Masculino",15,null,10,null,25]
[71,"João Vitor Santana","Mirim 1 Masculino",null,2,null,null,2]
[72,"Leonardo Marcharet","Mirim 1 Masculino",17,13,19,7,56]
[73,"Lorenzo Henrique Camargo ","Mirim 1 Masculino",5,8,15,2,30]
[74,"Lorenzo Vasconcelos","Mirim 1 Masculino",null,7,null,null,7]
[75,"Lucas Cândido ","Mirim 1 Masculino",7,null,null,3,10]
[76,"Luis Guilherme Biteli","Mirim 1 Masculino",9,null,null,8,17]
[77,"Luiz Guilherme ","Mirim 1 Masculino",null,11,null,null,11]
[78,"Luiz Guilherme Gouveia","Mirim 1 Masculino",null,null,11,null,11]
[79,"Miguel Batista ","Mirim 1 Masculino",1,null,null,null,1]
[80,"Miguel Maio","Mirim 1 Masculino",null,null,3,null,3]
[81,"Pedro Lucca Figueiredo","Mirim 1 Masculino",16,19,13,9,57]
[82,"Raul de Jesus ","Mirim 1 Masculino",9,5,null,5,19]
[83,"Théo Miranda","Mirim 1 Masculino",20,19,17,null,56]
[84,"Victor Rocha","Mirim 1 Masculino",null,null,2,null,2]
[85,"Lorenzo Bento Mariani","Mirim 1 Masculino",null,null,null,1,1]
[86,"Alicia Serrano ","Mirim 2 Feminino",0,3,0,null,3]
[87,"Ana Baetriz de Lima","Mirim 2 Feminino",0,7,2,null,9]
[88,"Ana Beatriz  Campos","Mirim 2 Feminino",4,0,0,null,4]
[89,"Ana Laura Faria ","Mirim 2 Feminino",4,5,0,null,9]
[90,"Antonella Menezes","Mirim 2 Feminino",0,4,0,null,4]
[91,"Carol Carneiro ","Mirim 2 Feminino",15,17,20,9,61]
[92,"Catarina Bonini","Mirim 2 Feminino",15,9,15,2,41]
[93,"Hadassa Vitória","Mirim 2 Feminino",0,0,3,1,4]
[94,"Helena Souto","Mirim 2 Feminino",0,1,1,null,2]
[95,"Heloisa Laurindo","Mirim 2 Feminino",8,15,5,6,34]
[96,"Isadora Rosa","Mirim 2 Feminino",2,11,9,5,27]
[97,"Julia Pastore","Mirim 2 Feminino",3,5,16,7,31]
[98,"Larissa Campanhã","Mirim 2 Feminino",1,0,6,null,7]
[99,"Laura Gabriele","Mirim 2 Feminino",17,0,20,3,40]
[100,"Laura Vieira Grilo","Mirim 2 Feminino",9,9,27,8,{"$f":"SUM(D99,E99,F99,G99)","v":53}]
[101,"Malu Medes","Mirim 2 Feminino",18,20,24,10,72]
[102,"Manuela Sigolo","Mirim 2 Feminino",0,4,0,null,4]
[103,"Nicole Costa","Mirim 2 Feminino",0,0,1,4,5]
[104,"Rafaela Melgar","Mirim 2 Feminino",0,0,7,null,7]
[105,"Sophia Domingos","Mirim 2 Feminino",14,0,4,null,18]
[106,"Andre Philipi","Mirim 2 Masculino",3,null,null,null,3]
[107,"Arthur Pini","Mirim 2 Masculino",null,2,19,null,21]
[108,"Bento Viticas","Mirim 2 Masculino",17,8,null,null,25]
[109,"Carlos Eduardo Pondé","Mirim 2 Masculino",7,4,7,5,23]
[110,"Cauã Malmonge","Mirim 2 Masculino",null,null,2,2,4]
[111,"Daniel Molaia","Mirim 2 Masculino",6,null,9,6,21]
[112,"Davi Lucca De Freitas","Mirim 2 Masculino",6,null,16,null,22]
[113,"Davi Lucca Pires","Mirim 2 Masculino",null,2,null,null,2]
[114,"Davi Souza do Vale","Mirim 2 Masculino",20,18,29,10,77]
[115,"Felipe Gabriel","Mirim 2 Masculino",null,null,8,null,8]
[116,"Gustavo Henrique","Mirim 2 Masculino",null,11,null,null,11]
[117,"Heitor Lisboa","Mirim 2 Masculino",null,5,null,7,12]
[118,"Henry Luis","Mirim 2 Masculino",3,4,null,null,7]
[119,"Joaquim Leite","Mirim 2 Masculino",null,4,null,null,4]
[120,"Lorenzo Carvalho","Mirim 2 Masculino",null,null,7,3,10]
[121,"Lucas Henrique","Mirim 2 Masculino",null,null,3,null,3]
[122,"Luiz Gustavo Sanfelice","Mirim 2 Masculino",11,7,null,null,18]
[123,"Luiz Miguel Laureano","Mirim 2 Masculino",null,null,8,null,8]
[124,"Mateus Moraes","Mirim 2 Masculino",8,16,16,8,48]
[125,"Miguel Cordeiro","Mirim 2 Masculino",null,null,3,null,3]
[126,"Pedro Ezidério","Mirim 2 Masculino",2,null,1,null,3]
[127,"Ryan de Lima Pedroso","Mirim 2 Masculino",6,2,null,4,12]
[128,"Ryan Vera Cruz","Mirim 2 Masculino",null,null,9,null,9]
[129,"Samuel Iacovone","Mirim 2 Masculino",3,15,null,null,18]
[130,"Vitor Guilhermino","Mirim 2 Masculino",17,13,28,9,67]
[131,"Weslley Pocaya","Mirim 2 Masculino",null,null,null,1,1]
[]
[]
[]
[]
[]
[]
[]
[]
[]
[]
[]
[]
[]
[]
[]
[]
[]
[]
[]
[]
[]
[]
[]
[]
[null,null,null,null,null,null,null,null,null," "]

{"sheet":"Classificação","index":2,"n_rows":25,"n_cols":7,"rows_kept":25,"cut":false,"hidden":false,"merged":[]}
["Categoria","Pré-Mirim Masculino"]
[]
["Nome do Atleta","Pont. 1ª etapa","Pont. 2ª etapa","Pont. 3ª etapa","Pont. 4ª etapa","Pontuação final","Ranking"]
["Heitor Gabriel",19,20,18,7,64,1]
["Heitor Luiz",19,14,8,10,51,2]
["Gabriel Matheus ",13,8,15,8,44,3]
["Matheus Pires",9,4,16,9,38,4]
["Vicente Serrano",null,9,18,4,31,5]
["Wallace Miguel",9,7,12,null,28,6]
["Valentim Cotrin",null,9,null,6,15,7]
["Murilo Thiago",null,5,9,null,14,8]
["Gabriel Iacovone",7,7,null,null,14,8]
["Miguel Inácio",null,13,null,null,13,9]
["Noah Marrega",3,9,null,null,12,10]
["Benjamim Custódia ",10,null,null,null,10,11]
["Davi Almeida",4,1,2,null,7,12]
["Henry Nicoleto",6,0,1,null,7,12]
["Bernardo Gusson",null,null,3,3,6,13]
["Enzo Gabriel de Sá",null,null,6,null,6,13]
["Felipe Alves",6,null,null,null,6,13]
["Arthur Padiar",1,null,null,5,6,13]
["Daniel Gimenes",null,null,2,1,3,14]
["Heitor Fogaça",null,3,null,null,3,14]
["VITOR HUGO RASCASCHI BERBEL",null,null,null,2,2,15]
["Gael Cavaliere",null,null,1,null,1,16]